fUST/lending_fUST_20241108
["ID","MTS","AMOUNT","RATE_DAILY","PERIOD"]
[341628679,1731045053764,-500.0,0.00022739,2]
[341628680,1731045053775,-500.0,0.00022739,2]
[341628681,1731045053785,-157.00997824,0.00022739,2]
[341628682,1731045053795,-500.0,0.00022739,2]
[341628683,1731045053805,-500.0,0.00022739,2]
[341628684,1731045053814,-500.0,0.00022739,2]
[341628685,1731045053824,-500.0,0.00022739,2]
[341628686,1731045053833,-500.0,0.00022739,2]
[341628687,1731045053843,-500.0,0.00022739,2]
[341628688,1731045053852,-843.24,0.00022739,2]
[341628689,1731045053862,-641.64,0.00022739,2]
[341628690,1731045053872,-500.0,0.00022739,2]
[341628691,1731045053882,-12.3278057,0.00022739,2]
[341628692,1731045054488,-487.6721943,0.00022739,2]
[341628693,1731045054497,-449.4878057,0.00022739,2]
[341628694,1731045054509,-50.5121943,0.00022739,2]
[341628695,1731045054518,-500.0,0.00022739,2]
[341628696,1731045054527,-500.0,0.00022739,2]
[341628697,1731045054536,-500.0,0.00022739,2]
[341628698,1731045054546,-500.0,0.00022739,2]
[341628699,1731045054561,-500.0,0.00022739,2]
[341628700,1731045054570,-500.0,0.00022739,2]
[341628701,1731045054579,-500.0,0.00022739,2]
[341628702,1731045054589,-843.81,0.00022739,2]
[341628703,1731045054599,-515.91,0.00022739,2]
[341628704,1731045054608,-500.0,0.00022739,2]
[341628705,1731045054617,-500.0,0.00022739,2]
[341628706,1731045054626,-500.0,0.00022739,2]
[341628707,1731045054635,-500.0,0.00022739,2]
[341628708,1731045054645,-500.0,0.00022739,2]
[341628709,1731045054654,-500.0,0.00022739,2]
[341628710,1731045054664,-500.0,0.00022739,2]
[341628711,1731045054673,-553.97817782,0.00022739,2]
[341628712,1731045054682,-500.0,0.00022739,2]
[341628713,1731045054692,-280.47942107,0.00022739,2]
[341628714,1731045054701,-500.0,0.00022739,2]
[341628715,1731045054710,-500.0,0.00022739,2]
[341628716,1731045054719,-500.0,0.00022739,2]
[341628717,1731045054729,-500.0,0.00022739,2]
[341628718,1731045054738,-500.0,0.00022739,2]
[341628719,1731045054747,-500.0,0.00022739,2]
[341628720,1731045054756,-5071.43,0.00022739,2]
[341628721,1731045054765,-575.74451553,0.00022739,2]
[341628722,1731045054774,-1251.45,0.00022739,2]
[341628723,1731045054782,-672.91,0.00022739,2]
[341628724,1731045054792,-500.0,0.00022739,2]
[341628725,1731045054802,-605.10931687,0.00022739,2]
[341628726,1731045054811,-500.0,0.00022739,2]
[341628727,1731045054820,-500.0,0.00022739,2]
[341628728,1731045054829,-500.0,0.00022739,2]
[341628729,1731045054838,-500.0,0.00022739,2]
[341628730,1731045054847,-500.0,0.00022739,2]
[341628731,1731045054857,-500.0,0.00022739,2]
[341628732,1731045054866,-500.0,0.00022739,2]
[341628733,1731045054875,-500.0,0.00022739,2]
[341628734,1731045054885,-500.0,0.00022739,2]
[341628735,1731045054894,-500.0,0.00022773,2]
[341628736,1731045054903,-160.45727455,0.00022773,2]
[341628737,1731045054913,-197.7472811,0.00022773,2]
[341628738,1731045054922,-500.0,0.00022773,2]
[341628739,1731045054931,-501.20134817,0.00022773,2]
[341628740,1731045054941,-181.47717814,0.00022773,2]
[341628741,1731045054950,-500.0,0.00022773,2]
[341628742,1731045054960,-508.03957741,0.00022773,2]
[341628743,1731045054969,-500.0,0.00022773,2]
[341628744,1731045054978,-500.0,0.00022773,2]
[341628745,1731045054988,-500.0,0.00022773,2]
[341628746,1731045054997,-500.0,0.00022773,2]
[341628747,1731045055007,-500.0,0.00022773,2]
[341628748,1731045055016,-122.05674238,0.00022799,2]
[341628749,1731045281387,-202.222259,0.00022465,7]
[341628750,1731045281412,-202.222259,0.00022465,7]
[341628751,1731045281438,-571.074116,0.00022465,7]
[341628752,1731045281463,-489.039616,0.00022465,7]
[341628753,1731045281484,-1338.33633,0.00022465,7]
[341628754,1731045281512,-571.074116,0.00022465,7]
[341628755,1731045281532,-489.039616,0.00022465,7]
[341628756,1731045281554,-151.0,0.00022465,7]
[341628757,1731045281575,-1338.33633,0.00022465,7]
[341628758,1731045281595,-151.0,0.00022465,7]
[341628759,1731045281619,-151.0,0.00022465,7]
[341628760,1731045281643,-1036.666712,0.00022465,7]
[341628761,1731045281664,-151.0,0.00022465,7]
[341628762,1731045281685,-151.0,0.00022465,7]
[341628763,1731045281705,-613.817586,0.00022465,7]
[341628764,1731045281726,-1036.666712,0.00022465,7]
[341628765,1731045281747,-613.817586,0.00022465,7]
[341628766,1731045281767,-151.0,0.00022465,7]
[341628767,1731045281788,-871.735756,0.00022465,7]
[341628768,1731045281810,-871.735756,0.00022465,7]
[341628769,1731045281835,-571.074116,0.00022739,7]
[341628770,1731045281858,-571.074116,0.00022739,7]
[341628771,1731045281880,-151.0,0.00022739,7]
[341628772,1731045281904,-151.0,0.00022739,7]
[341628773,1731045281926,-1036.666712,0.00022739,7]
[341628774,1731045281947,-151.0,0.00022739,7]
[341628775,1731045281969,-613.817586,0.00022739,7]
[341628776,1731045281991,-1036.666712,0.00022739,7]
[341628777,1731045282014,-613.817586,0.00022739,7]
[341628778,1731045282034,-201.466296,0.00022739,7]
[341628779,1731045282055,-871.735756,0.00022739,7]
[341628780,1731045282076,-871.735756,0.00022739,7]
[341628781,1731045282099,-151.0,0.00022799,7]
[341628782,1731045282119,-151.0,0.00022799,7]
[341628783,1731045282139,-151.0,0.00022799,7]
[341628784,1731045282160,-151.0,0.00022799,7]
[341628785,1731045282183,-222.138296,0.00022799,7]
[341628786,1731045282206,-222.138296,0.00022799,7]
[341628787,1731045282227,-151.0,0.00022799,7]
[341628788,1731045282248,-151.0,0.00022799,7]
[341628789,1731045282269,-334.862099,0.00022799,7]
[341628790,1731045282292,-334.862099,0.00022799,7]
[341628791,1731045282315,-202.222259,0.00022799,7]
[341628792,1731045282338,-202.222259,0.00022799,7]
[341628793,1731045282360,-489.039616,0.00022799,7]
[341628794,1731045282383,-1338.33633,0.00022799,7]
[341628795,1731045282404,-489.039616,0.00022799,7]
[341628796,1731045282426,-1338.33633,0.00022799,7]
[341628797,1731045282446,-151.0,0.00022799,7]
[341628798,1731045282467,-151.0,0.00022799,7]
[341628799,1731045282488,-150.112233,0.000229,9]
[341628800,1731045282510,-151.0,0.00023013,7]
[341628801,1731045282531,-151.0,0.00023013,7]
[341628802,1731045282552,-151.0,0.00023013,7]
[341628803,1731045282575,-151.0,0.00023013,7]
[341628804,1731045282597,-151.0,0.00023013,7]
[341628805,1731045282621,-151.0,0.00023013,7]
[341628806,1731045282642,-151.0,0.00023013,7]
[341628807,1731045282667,-151.0,0.00023013,7]
[341628808,1731045282688,-440.849655,0.00023013,7]
[341628809,1731045282708,-440.849655,0.00023013,7]
[341628810,1731045282838,-409.444135,0.00023013,7]
[341628811,1731045282860,-409.444135,0.00023013,7]
[341628812,1731045282883,-151.0,0.00023013,7]
[341628813,1731045322733,-151.0,0.00023073,7]
[341628814,1731045322756,-218.429045,0.00023073,7]
[341628815,1731045322778,-218.429045,0.00023073,7]
[341628816,1731045322801,-151.0,0.00023073,7]
[341628817,1731045322824,-182.258258,0.00023073,7]
[341628818,1731045322847,-182.258258,0.00023073,7]
[341628819,1731045322869,-151.471262,0.00023073,7]
[341628820,1731045322891,-151.0,0.00023073,7]
[341628821,1731045322917,-151.0,0.00023073,7]
[341628822,1731045322942,-274.458981,0.00023073,7]
[341628823,1731045322966,-571.074116,0.00023073,7]
[341628824,1731045322991,-571.074116,0.00023073,7]
[341628825,1731045323012,-151.0,0.00023073,7]
[341628826,1731045323036,-151.0,0.00023073,7]
[341628827,1731045323060,-1036.666712,0.00023073,7]
[341628828,1731045323084,-151.0,0.00023073,7]
[341628829,1731045323106,-613.817586,0.00023073,7]
[341628830,1731045323131,-1036.666712,0.00023073,7]
[341628831,1731045323154,-613.817586,0.00023073,7]
[341628832,1731045323177,-871.735756,0.00023073,7]
[341628833,1731045323200,-871.735756,0.00023073,7]
[341628834,1731045323223,-157.338065,0.000232,10]
[341628835,1731045323246,-151.0,0.00023287,7]
[341628836,1731045323268,-151.0,0.00023287,7]
[341628837,1731045323293,-151.0,0.00023287,7]
[341628838,1731045323315,-151.0,0.00023287,7]
[341628839,1731045323338,-151.0,0.00023287,7]
[341628840,1731045323362,-151.0,0.00023287,7]
[341628841,1731045323385,-440.849655,0.00023287,7]
[341628842,1731045323407,-440.849655,0.00023287,7]
[341628843,1731045323428,-268.115765,0.00023287,7]
[341628844,1731045323450,-151.0,0.00023287,7]
[341628845,1731045323472,-151.0,0.00023287,7]
[341628846,1731045323494,-151.0,0.00023287,7]
[341628847,1731045323521,-334.862099,0.00023287,7]
[341628848,1731045323544,-334.862099,0.00023287,7]
[341628849,1731045323568,-202.222259,0.00023287,7]
[341628850,1731045323591,-202.222259,0.00023287,7]
[341628851,1731045323614,-489.039616,0.00023287,7]
[341628852,1731045323640,-1338.33633,0.00023287,7]
[341628853,1731045323664,-489.039616,0.00023287,7]
[341628854,1731045323689,-1338.33633,0.00023287,7]
[341628855,1731045323713,-151.0,0.00023287,7]
[341628856,1731045323736,-151.0,0.00023287,7]
[341628857,1731045323763,-150.112233,0.000234,8]
[341628858,1731045323789,-151.0,0.00023561,7]
[341628859,1731045323812,-151.0,0.00023561,7]
[341628860,1731045323838,-218.429045,0.00023561,7]
[341628861,1731045323863,-218.429045,0.00023561,7]
[341628862,1731045323887,-151.0,0.00023561,7]
[341628863,1731045323914,-182.258258,0.00023561,7]
[341628864,1731045323939,-182.258258,0.00023561,7]
[341628865,1731045323964,-151.0,0.00023561,7]
[341628866,1731045323989,-151.0,0.00023561,7]
[341628867,1731045324012,-151.0,0.00023561,7]
[341628868,1731045324036,-151.0,0.00023561,7]
[341628869,1731045324064,-151.0,0.00023561,7]
[341628870,1731045324088,-151.0,0.00023561,7]
[341628871,1731045324112,-151.0,0.00023561,7]
[341628872,1731045324136,-151.0,0.00023561,7]
[341628873,1731045324159,-151.0,0.00023561,7]
[341628874,1731045324184,-151.0,0.00023561,7]
[341628875,1731045324208,-440.849655,0.00023561,7]
[341628876,1731045324231,-440.849655,0.00023561,7]
[341628877,1731045324254,-151.0,0.00023561,7]
[341628878,1731045324276,-151.0,0.00023561,7]
[341628879,1731045324299,-276.940608,0.00023561,7]
[341628880,1731045324323,-334.862099,0.00023561,7]
[341628881,1731045324345,-334.862099,0.00023561,7]
[341628882,1731045324369,-202.222259,0.00023561,7]
[341628883,1731045324393,-202.222259,0.00023561,7]
[341628884,1731045324417,-571.074116,0.00023561,7]
[341628885,1731045324440,-489.039616,0.00023561,7]
[341628886,1731045324463,-1338.33633,0.00023561,7]
[341628887,1731045324486,-571.074116,0.00023561,7]
[341628888,1731045324511,-489.039616,0.00023561,7]
[341628889,1731045324534,-151.0,0.00023561,7]
[341628890,1731045324557,-1338.33633,0.00023561,7]
[341628891,1731045324580,-151.0,0.00023561,7]
[341628892,1731045324603,-1036.666712,0.00023561,7]
[341628893,1731045324626,-151.0,0.00023561,7]
[341628894,1731045324648,-151.0,0.00023561,7]
[341628895,1731045324671,-613.817586,0.00023561,7]
[341628896,1731045324695,-1036.666712,0.00023561,7]
[341628897,1731045324718,-613.817586,0.00023561,7]
[341628898,1731045324748,-871.735756,0.00023561,7]
[341628899,1731045324772,-871.735756,0.00023561,7]
[341628900,1731045324798,-151.0,0.00023621,7]
[341628901,1731045324820,-151.0,0.00023623,7]
[341628902,1731045324842,-152.816654,0.00023835,7]
[341628903,1731045324866,-151.0,0.00023835,7]
[341628904,1731045324890,-151.0,0.00023835,7]
[341628905,1731045324916,-151.0,0.00023835,7]
[341628906,1731045324940,-151.0,0.00023835,7]
[341628907,1731045324966,-334.862099,0.00023835,7]
[341628908,1731045324990,-334.862099,0.00023835,7]
[341628909,1731045325109,-202.222259,0.00023835,7]
[341628910,1731045325133,-202.222259,0.00023835,7]
[341628911,1731045325158,-571.074116,0.00023835,7]
[341628912,1731045325190,-489.039616,0.00023835,7]
[341628913,1731045325220,-1338.33633,0.00023835,7]
[341628914,1731045325245,-571.074116,0.00023835,7]
[341628915,1731045325270,-489.039616,0.00023835,7]
[341628916,1731045325295,-151.0,0.00023835,7]
[341628917,1731045325319,-1338.33633,0.00023835,7]
[341628918,1731045325345,-151.0,0.00023835,7]
[341628919,1731045325370,-1036.666712,0.00023835,7]
[341628920,1731045325393,-151.0,0.00023835,7]
[341628921,1731045325417,-151.0,0.00023835,7]
[341628922,1731045325440,-613.817586,0.00023835,7]
[341628923,1731045325464,-1036.666712,0.00023835,7]
[341628924,1731045325486,-613.817586,0.00023835,7]
[341628925,1731045325511,-871.735756,0.00023835,7]
[341628926,1731045325535,-871.735756,0.00023835,7]
[341628927,1731045325561,-151.0,0.00023895,7]
[341628928,1731045325583,-151.0,0.00023895,7]
[341628929,1731045325605,-218.429045,0.00023895,7]
[341628930,1731045325628,-218.429045,0.00023895,7]
[341628931,1731045325651,-182.258258,0.00023895,7]
[341628932,1731045325674,-182.258258,0.00023895,7]
[341628933,1731045325696,-151.0,0.00023895,7]
[341628934,1731045325719,-151.0,0.00023895,7]
[341628935,1731045325743,-151.0,0.00023895,7]
[341628936,1731045325764,-440.849655,0.00023895,7]
[341628937,1731045325788,-440.849655,0.00023895,7]
[341628938,1731045325811,-174.0603,0.00023895,7]
[341628939,1731045362159,-200.0,0.00024658,15]
[341628940,1731045362188,-16145.05,0.000247,14]
[341628941,1731045362217,-4187.3,0.00025,14]
[341628942,1731045362239,-547.35,0.00025,14]
[341628943,1731045362261,-548.22,0.00025,14]
[341628944,1731045393757,479.25,0.000247,14]
[341628945,1731045394368,151.0,0.00023835,7]
[341628946,1731045395202,151.966787,0.00023835,7]
[341628947,1731045397404,14135.14,0.000247,14]
[341628948,1731045404982,244.519808,0.00023835,7]
[341628949,1731045408657,244.519808,0.00023835,7]
[341628950,1731045412864,154.810988,0.00023835,7]
[341628951,1731045415516,306.908793,0.00023835,7]
[341628952,1731045417633,200.917259,0.00023835,7]
[341628953,1731045418782,151.0,0.00023835,7]
[341628954,1731045418902,306.908793,0.00023835,7]
[341628955,1731045421012,200.917259,0.00023835,7]
[341628956,1731045434607,2609.0,0.00025,14]
[341628957,1731045436046,669.168165,0.00023835,7]
[341628958,1731045439381,669.168165,0.00023835,7]
[341628959,1731045442705,200.0,0.00025,14]
[341628960,1731045450944,285.537058,0.00023835,7]
[341628961,1731045455262,285.537058,0.00023835,7]
[341628962,1731045455707,151.0,0.00023835,7]
[341628963,1731045475588,653.95972,0.00023835,7]
[341628964,1731045478161,1223.816038,0.00023835,7]
[341628965,1731045478618,435.867878,0.00023835,7]
[341628966,1731045478646,653.95972,0.00023835,7]
[341628967,1731045481569,1223.816038,0.00023835,7]
[341628968,1731045482207,435.867878,0.00023835,7]
[341628969,1731045488208,163.704718,0.00013973,2]
[341628970,1731045490423,151.0,0.00023835,7]
[341628971,1731045491208,3663.85,0.000247,14]
[341628972,1731045497720,151.0,0.00023835,7]
[341628973,1731045497783,548.22,0.000247,14]
[341628974,1731045506733,151.0,0.00023835,7]
[341628975,1731045516639,151.0,0.00023561,7]
[341628976,1731045523354,151.0,0.00023561,7]
[341628977,1731045529804,431.33,0.000247,14]
[341628978,1731045541873,368.499722,0.00023561,7]
[341628979,1731045545867,368.499722,0.00023561,7]
[341628980,1731045550821,694.44444444,0.00020843,2]
[341628981,1731045556831,151.0,0.00023561,7]
[341628982,1731045582310,338.392294,0.00023561,7]
[341628983,1731045586556,154.706222,0.00023561,7]
[341628984,1731045587310,338.392294,0.00023561,7]
[341628985,1731045595855,12721.63,0.000247,14]
[341628986,1731045596298,151.0,0.00023561,7]
[341628987,1731045599921,151.0,0.00023561,7]
[341628988,1731045600921,199.924467,0.00023561,7]
[341628989,1731045604423,199.924467,0.00023561,7]
[341628990,1731045605385,225.997826,0.00023561,7]
[341628991,1731045607269,151.0,0.00023561,7]
[341628992,1731045613701,225.997826,0.00023561,7]
[341628993,1731045624449,151.0,0.00023561,7]
[341628994,1731045624899,151.0,0.00023561,7]
[341628995,1731045627734,177.628823,0.00023561,7]
[341628996,1731045628092,151.0,0.00023561,7]
[341628997,1731045631854,151.0,0.00023561,7]
[341628998,1731045634444,151.0,0.00023561,7]
[341628999,1731045645327,151.0,0.00023561,7]
[341629000,1731045662447,2166.240478,0.00023561,7]
[341629001,1731045663607,264.509793,0.00023561,7]
[341629002,1731045666923,2166.240478,0.00023561,7]
[341629003,1731045667701,264.509793,0.00023561,7]
[341629004,1731045675618,233.49004081,0.00022813,7]
[341629005,1731045678093,151.0,0.00023561,7]
[341629011,1731046049576,165.297665,0.00013973,2]
[341629046,1731046162450,694.44444444,0.00020843,2]
[341629062,1731046232279,-300.0,0.00020913,2]
[341629063,1731046232289,-3423.77,0.00020914,2]
[341629601,1731046238350,-1582.0836939,0.00020914,2]
[341629602,1731046238362,-19874.1463061,0.00020914,2]
[341629603,1731046238372,-161.4574527,0.00020914,2]
[341629604,1731046238383,-708.01,0.00021907,3]
[341629605,1731046238392,-294.85831827,0.00021916,2]
[341629606,1731046238401,-360.76931959,0.00021916,2]
[341629607,1731046238411,-227.12562855,0.00021916,2]
[341629608,1731046238420,-500.0,0.00021916,2]
[341629609,1731046238429,-500.0,0.00021916,2]
[341629610,1731046238438,-500.0,0.00021916,2]
[341629611,1731046238448,-500.0,0.00021916,2]
[341629612,1731046238457,-500.0,0.00021916,2]
[341629613,1731046238466,-500.0,0.00021916,2]
[341629614,1731046238475,-500.0,0.00021916,2]
[341629615,1731046238486,-500.0,0.00021916,2]
[341629616,1731046238496,-500.0,0.00021916,2]
[341629617,1731046238506,-500.0,0.00021916,2]
[341629619,1731046238515,-500.0,0.00021916,2]
[341629621,1731046238525,-450.0,0.00021916,2]
[341629623,1731046238535,-500.0,0.00021916,2]
[341629624,1731046238544,-500.0,0.00021916,2]
[341629626,1731046238554,-500.0,0.00021916,2]
[341629628,1731046238564,-500.0,0.00021916,2]
[341629630,1731046238573,-500.0,0.00021916,2]
[341629632,1731046238582,-262.46754703,0.00021916,2]
[341629634,1731046238591,-500.0,0.00021916,2]
[341629637,1731046238600,-500.0,0.00021916,2]
[341629640,1731046238610,-500.0,0.00021916,2]
[341629643,1731046238619,-400.04205037,0.00021916,2]
[341629646,1731046238628,-500.0,0.00021916,2]
[341629649,1731046238637,-500.0,0.00021916,2]
[341629652,1731046238646,-500.0,0.00021916,2]
[341629655,1731046238655,-500.0,0.00021916,2]
[341629658,1731046238664,-500.0,0.00021916,2]
[341629660,1731046238674,-500.0,0.00021916,2]
[341629662,1731046238683,-500.0,0.00021916,2]
[341629664,1731046238691,-500.0,0.00021916,2]
[341629665,1731046238701,-500.0,0.00021916,2]
[341629667,1731046238710,-500.0,0.00021916,2]
[341629669,1731046238720,-500.0,0.00021916,2]
[341629671,1731046238730,-500.0,0.00021916,2]
[341629673,1731046238739,-500.0,0.00021916,2]
[341629675,1731046238749,-500.0,0.00021916,2]
[341629677,1731046238758,-500.0,0.00021916,2]
[341629679,1731046238767,-500.0,0.00021916,2]
[341629681,1731046238777,-500.0,0.00021916,2]
[341629683,1731046238789,-500.0,0.00021916,2]
[341629685,1731046238800,-500.0,0.00021916,2]
[341629687,1731046238809,-500.0,0.00021916,2]
[341629688,1731046238819,-500.0,0.00021916,2]
[341629689,1731046238828,-500.0,0.00021916,2]
[341629690,1731046238837,-500.0,0.00021916,2]
[341629691,1731046238847,-500.0,0.00021916,2]
[341629692,1731046238857,-500.0,0.00021916,2]
[341629693,1731046238866,-626.00619019,0.00021916,2]
[341629694,1731046238876,-500.0,0.00021916,2]
[341629695,1731046238885,-500.0,0.00021916,2]
[341629696,1731046238894,-500.0,0.00021916,2]
[341629697,1731046238904,-600.37845331,0.00021916,2]
[341629698,1731046238913,-650.0,0.00021916,2]
[341629699,1731046238923,-500.0,0.00021916,2]
[341629700,1731046238933,-500.0,0.00021916,2]
[341629701,1731046238943,-500.0,0.00021916,2]
[341629702,1731046238953,-248.66622691,0.00021916,2]
[341629703,1731046238962,-386.79359075,0.00021916,2]
[341629704,1731046238971,-500.0,0.00021916,2]
[341629705,1731046238980,-165.76868175,0.00021916,2]
[341629706,1731046238989,-500.0,0.00021916,2]
[341629707,1731046238998,-500.0,0.00021916,2]
[341629708,1731046239008,-500.0,0.00021916,2]
[341629709,1731046239017,-500.0,0.00021916,2]
[341629710,1731046239027,-400.0,0.00021916,2]
[341629712,1731046239036,-500.0,0.00021916,2]
[341629713,1731046239045,-500.0,0.00021916,2]
[341629715,1731046239055,-500.0,0.00021916,2]
[341629717,1731046239064,-500.0,0.00021916,2]
[341629719,1731046239073,-500.0,0.00021916,2]
[341629721,1731046239083,-500.0,0.00021916,2]
[341629723,1731046239096,-500.0,0.00021916,2]
[341629724,1731046239106,-500.0,0.00021916,2]
[341629725,1731046239115,-588.13437787,0.00021916,2]
[341629726,1731046239124,-500.0,0.00021916,2]
[341629727,1731046239134,-500.0,0.00021916,2]
[341629728,1731046239143,-500.0,0.00021916,2]
[341629729,1731046239152,-500.0,0.00021916,2]
[341629730,1731046239161,-500.0,0.00021916,2]
[341629731,1731046239171,-500.0,0.00021916,2]
[341629732,1731046239181,-408.81343778,0.00021916,2]
[341629733,1731046239190,-500.0,0.00021916,2]
[341629734,1731046239199,-500.0,0.00021916,2]
[341629735,1731046239208,-500.0,0.00021916,2]
[341629736,1731046239218,-500.0,0.00021916,2]
[341629737,1731046239227,-500.0,0.00021916,2]
[341629738,1731046239236,-500.0,0.00021916,2]
[341629739,1731046239245,-500.0,0.00021916,2]
[341629740,1731046239254,-500.0,0.00021916,2]
[341629741,1731046239264,-500.0,0.00021916,2]
[341629742,1731046239370,-465.0,0.00021916,2]
[341629743,1731046239380,-500.0,0.00021916,2]
[341629744,1731046239389,-500.0,0.00021916,2]
[341629745,1731046239398,-500.0,0.00021916,2]
[341629746,1731046239408,-500.0,0.00021916,2]
[341629747,1731046239417,-500.0,0.00021916,2]
[341629748,1731046239426,-500.0,0.00021916,2]
[341629749,1731046239436,-600.0,0.00021916,2]
[341629750,1731046239445,-500.0,0.00021917,2]
[341629751,1731046239454,-500.0,0.00021917,2]
[341629752,1731046239463,-500.0,0.00021917,2]
[341629753,1731046239472,-500.0,0.00021917,2]
[341629754,1731046239482,-500.0,0.00021917,2]
[341629755,1731046239491,-502.73894571,0.00021917,2]
[341629756,1731046239501,-533.73586582,0.00021917,2]
[341629757,1731046239510,-514.75747918,0.00021917,2]
[341629758,1731046239519,-505.76236234,0.00021917,2]
[341629759,1731046239529,-501.38445083,0.00021917,2]
[341629760,1731046239539,-500.0,0.00021917,2]
[341629761,1731046239548,-398.44077234,0.00021917,2]
[341629762,1731046239557,-500.0,0.00021917,2]
[341629763,1731046239566,-178.90527598,0.00021917,2]
[341629764,1731046239575,-500.0,0.00021917,2]
[341629765,1731046239586,-521.48210893,0.00021917,2]
[341629766,1731046239596,-502.75600823,0.00021917,2]
[341629767,1731046239606,-500.0,0.00021917,2]
[341629768,1731046239615,-500.0,0.00021917,2]
[341629769,1731046239625,-500.0,0.00021917,2]
[341629770,1731046239635,-509.32153193,0.00021917,2]
[341629771,1731046239645,-481.93223063,0.00021917,2]
[341629772,1731046239654,-500.0,0.00021917,2]
[341629773,1731046239663,-500.0,0.00021917,2]
[341629774,1731046239672,-500.0,0.00021917,2]
[341629775,1731046239681,-500.0,0.00021917,2]
[341629776,1731046239691,-500.0,0.00021917,2]
[341629777,1731046239700,-500.0,0.00021917,2]
[341629778,1731046239709,-500.0,0.00021917,2]
[341629779,1731046239719,-500.0,0.00021917,2]
[341629780,1731046239728,-500.0,0.00021917,2]
[341629781,1731046239737,-500.0,0.00021917,2]
[341629782,1731046239746,-504.78545713,0.00021917,2]
[341629783,1731046239756,-383.48744995,0.00021917,2]
[341629784,1731046239765,-500.0,0.00021917,2]
[341629785,1731046239774,-500.0,0.00021917,2]
[341629786,1731046239783,-500.0,0.00021917,2]
[341629787,1731046239792,-500.0,0.00021917,2]
[341629788,1731046239801,-514.26372943,0.00021917,2]
[341629789,1731046239817,-500.0,0.00021917,2]
[341629790,1731046239829,-500.0,0.00021917,2]
[341629791,1731046239839,-500.0,0.00021917,2]
[341629792,1731046239849,-500.0,0.00021917,2]
[341629793,1731046239858,-500.0,0.00021917,2]
[341629794,1731046239868,-500.0,0.00021917,2]
[341629795,1731046239877,-500.0,0.00021917,2]
[341629796,1731046239887,-500.0,0.00021917,2]
[341629797,1731046239896,-194.42145591,0.00021917,2]
[341629798,1731046239905,-500.0,0.00021917,2]
[341629799,1731046239914,-206.22056308,0.00021917,2]
[341629800,1731046239923,-500.0,0.00021917,2]
[341629801,1731046239933,-195.6179706,0.00021917,2]
[341629802,1731046239948,-304.3820294,0.00021917,2]
[341629803,1731046239958,-159.27730559,0.00021917,2]
[341629804,1731046239970,-340.72269441,0.00021917,2]
[341629805,1731046239979,-500.0,0.00021917,2]
[341629806,1731046239989,-500.0,0.00021917,2]
[341629807,1731046239999,-540.07445125,0.00021917,2]
[341629808,1731046240008,-500.0,0.00021917,2]
[341629810,1731046240018,-500.0,0.00021917,2]
[341629812,1731046240027,-500.0,0.00021917,2]
[341629814,1731046240037,-500.0,0.00021917,2]
[341629816,1731046240046,-500.0,0.00021917,2]
[341629818,1731046240055,-515.7945876,0.00021917,2]